lending/lending_fUSD_20240410
["ID","MTS","AMOUNT","RATE_DAILY","PERIOD"]
[322085336,1712753468702,-500.0,0.00055068,120]
[322085337,1712753468712,-500.0,0.00055068,120]
[322085338,1712753468722,-500.0,0.00055068,120]
[322085339,1712753468732,-500.0,0.00055068,120]
[322085340,1712753468742,-500.0,0.00055068,120]
[322085341,1712753468755,-500.0,0.00055068,120]
[322085342,1712753468765,-500.0,0.00055068,120]
[322085343,1712753468778,-505.35,0.00055068,120]
[322085344,1712753468788,-500.0,0.00055068,120]
[322085345,1712753468798,-500.0,0.00055068,120]
[322085346,1712753468815,-500.0,0.00055068,120]
[322085347,1712753468826,-500.0,0.00055068,120]
[322085348,1712753468841,-500.0,0.00055068,120]
[322085349,1712753468854,-500.0,0.00055068,120]
[322085350,1712753468865,-500.0,0.00055068,120]
[322085351,1712753468876,-500.0,0.00055068,120]
[322085352,1712753468886,-500.0,0.00055068,120]
[322085353,1712753468897,-1112.92,0.00055068,120]
[322085354,1712753468912,-625.54073548,0.00055068,120]
[322085355,1712753468922,-500.0,0.00055068,120]
[322085356,1712753468932,-191.98038663,0.00055068,120]
[322085357,1712753468943,-500.0,0.00055068,120]
[322085358,1712753468959,-500.0,0.00055068,120]
[322085359,1712753468972,-560.75,0.00055068,120]
[322085360,1712753468983,-500.0,0.00055068,120]
[322085361,1712753468993,-500.0,0.00055068,120]
[322085362,1712753469003,-551.48,0.00055068,120]
[322085363,1712753469013,-500.0,0.00055068,120]
[322085364,1712753469024,-500.0,0.00055068,120]
[322085365,1712753469040,-500.0,0.00055068,120]
[322085366,1712753469050,-1468.27,0.00055068,120]
[322085367,1712753469067,-500.0,0.00055068,120]
[322085368,1712753469080,-500.0,0.00055068,120]
[322085369,1712753469097,-500.0,0.00055068,120]
[322085370,1712753469113,-594.65,0.00055068,120]
[322085371,1712753469123,-2023.1,0.00055068,120]
[322085372,1712753469134,-500.0,0.00055068,120]
[322085373,1712753469147,-500.0,0.00055068,120]
[322085374,1712753469159,-500.0,0.00055068,120]
[322085375,1712753469168,-748.0,0.00055068,120]
[322085376,1712753469180,-1207.24,0.00055068,120]
[322085377,1712753469190,-500.0,0.00055068,120]
[322085378,1712753469200,-500.0,0.00055068,120]
[322085379,1712753469210,-654.13,0.00055068,120]
[322085380,1712753469220,-500.0,0.00055068,120]
[322085381,1712753469230,-500.0,0.00055068,120]
[322085382,1712753469240,-500.0,0.00055068,120]
[322085383,1712753469259,-500.0,0.00055068,120]
[322085384,1712753469270,-500.0,0.00055068,120]
[322085385,1712753469280,-3437.2,0.00055068,120]
[322085386,1712753469290,-379.85744709,0.00055068,120]
[322085387,1712753469300,-988.0,0.00055068,120]
[322085388,1712753469310,-500.0,0.00055068,120]
[322085389,1712753469320,-500.0,0.00055068,120]
[322085390,1712753469330,-385.40996339,0.00055068,120]
[322085391,1712753469342,-500.0,0.00055068,7]
[322085392,1712753469352,-500.0,0.00055068,120]
[322085393,1712753469361,-500.0,0.00055068,120]
[322085394,1712753469371,-500.0,0.00055068,120]
[322085395,1712753469382,-500.0,0.00055068,120]
[322085396,1712753469392,-500.0,0.00055068,120]
[322085397,1712753469402,-500.0,0.00055068,120]
[322085398,1712753469413,-500.0,0.00055068,120]
[322085399,1712753469423,-590.72,0.00055068,120]
[322085400,1712753469432,-500.0,0.00055068,120]
[322085401,1712753469443,-2746.55,0.00055068,120]
[322085402,1712753469453,-168.58,0.00055068,2]
[322085403,1712753469463,-6697.01,0.00055068,120]
[322085404,1712753469477,-500.0,0.0005511,20]
[322085405,1712753469488,-523.0,0.000552,30]
[322085406,1712753469502,-150.0,0.000552,30]
[322085407,1712753469521,-264.71111111,0.00055233,120]
[322085408,1712753469532,-1550.4047848,0.00055335,120]
[322085409,1712753469543,-500.0,0.00055342,120]
[322085410,1712753469554,-561.23,0.00055342,120]
[322085411,1712753469564,-500.0,0.00055342,120]
[322085412,1712753469573,-500.0,0.00055342,120]
[322085413,1712753469600,-500.0,0.00055342,120]
[322085414,1712753469611,-500.0,0.00055342,120]
[322085415,1712753469622,-500.0,0.00055342,120]
[322085416,1712753469633,-500.0,0.00055342,120]
[322085417,1712753469643,-500.0,0.00055342,120]
[322085418,1712753469654,-520.72,0.00055342,120]
[322085419,1712753469665,-500.0,0.00055342,120]
[322085420,1712753469675,-500.0,0.00055342,120]
[322085421,1712753469686,-500.0,0.00055342,120]
[322085422,1712753469696,-551.47,0.00055342,120]
[322085423,1712753469706,-500.0,0.00055342,120]
[322085424,1712753469720,-500.0,0.00055342,120]
[322085425,1712753469730,-500.0,0.00055342,120]
[322085426,1712753469740,-500.0,0.00055342,120]
[322085427,1712753469750,-500.0,0.00055342,120]
[322085428,1712753469760,-500.0,0.00055342,120]
[322085429,1712753469770,-500.0,0.00055342,120]
[322085430,1712753469780,-500.0,0.00055342,120]
[322085431,1712753469789,-246.84,0.00055342,120]
[322085432,1712753469799,-500.0,0.00055342,120]
[322085433,1712753469809,-500.0,0.00055342,120]
[322085434,1712753469818,-500.0,0.00055342,120]
[322085435,1712753469828,-500.0,0.00055342,120]
[322085436,1712753469841,-472.00631065,0.00055342,120]
[322085437,1712753469851,-282.94724903,0.00055342,120]
[322085438,1712753469862,-500.0,0.00055342,120]
[322085439,1712753469872,-500.0,0.00055342,120]
[322085440,1712753469883,-500.0,0.00055342,120]
[322085441,1712753469893,-500.0,0.00055342,30]
[322085442,1712753469903,-500.0,0.00055342,120]
[322085443,1712753469914,-500.0,0.00055342,120]
[322085444,1712753469924,-500.0,0.00055342,120]
[322085445,1712753469934,-400.67,0.00055342,120]
[322085446,1712753469945,-500.0,0.00055342,120]
[322085447,1712753469956,-500.0,0.00055342,120]
[322085448,1712753469966,-500.0,0.00055342,120]
[322085449,1712753469986,-500.0,0.00055342,120]
[322085450,1712753469997,-164.8757369,0.00055342,120]
[322085451,1712753470017,-500.0,0.00055342,120]
[322085452,1712753470027,-500.0,0.00055342,120]
[322085453,1712753470038,-500.0,0.00055342,120]
[322085454,1712753470048,-589.34,0.00055342,120]
[322085455,1712753470058,-500.0,0.00055342,120]
[322085456,1712753470068,-491.52,0.00055342,120]
[322085457,1712753470080,-500.0,0.00055342,120]
[322085458,1712753470095,-500.0,0.00055342,120]
[322085459,1712753470119,-500.0,0.00055342,120]
[322085460,1712753470132,-500.0,0.00055342,120]
[322085461,1712753470145,-500.0,0.00055342,120]
[322085462,1712753470156,-572.79,0.00055342,120]
[322085463,1712753470167,-500.0,0.00055342,120]
[322085464,1712753470179,-500.0,0.00055342,120]
[322085465,1712753470189,-500.0,0.00055342,120]
[322085466,1712753470200,-500.0,0.00055342,120]
[322085467,1712753470209,-500.0,0.00055342,120]
[322085468,1712753470220,-500.0,0.00055342,120]
[322085469,1712753470231,-500.0,0.00055342,120]
[322085470,1712753470241,-500.0,0.00055342,120]
[322085471,1712753470251,-491.54,0.00055342,120]
[322085472,1712753470261,-500.0,0.00055342,120]
[322085473,1712753470271,-606.85,0.00055342,120]
[322085474,1712753470282,-500.0,0.00055342,120]
[322085475,1712753470293,-500.0,0.00055342,120]
[322085476,1712753470303,-500.0,0.00055342,120]
[322085477,1712753470313,-500.0,0.00055342,120]
[322085478,1712753470323,-500.0,0.00055342,120]
[322085479,1712753470334,-500.0,0.00055342,120]
[322085480,1712753470350,-500.0,0.00055342,120]
[322085481,1712753470361,-500.0,0.00055342,120]
[322085482,1712753470372,-500.0,0.00055342,120]
[322085483,1712753470382,-500.0,0.00055342,120]
[322085484,1712753470393,-500.0,0.00055342,120]
[322085485,1712753470403,-500.0,0.00055342,120]
[322085486,1712753470413,-547.72502435,0.00055342,120]
[322085487,1712753470423,-500.0,0.00055342,120]
[322085488,1712753470434,-500.0,0.00055342,120]
[322085489,1712753470444,-150.0,0.00055342,120]
[322085490,1712753470454,-500.0,0.00055342,120]
[322085491,1712753470464,-500.0,0.00055342,120]
[322085492,1712753470473,-194.4,0.00055342,120]
[322085493,1712753470483,-500.0,0.00055342,120]
[322085494,1712753470494,-500.0,0.00055342,120]
[322085495,1712753470503,-500.0,0.00055342,120]
[322085496,1712753470513,-500.0,0.00055342,120]
[322085497,1712753470524,-410.12,0.00055342,120]
[322085498,1712753470533,-500.0,0.00055342,120]
[322085499,1712753470543,-500.0,0.00055342,120]
[322085500,1712753470553,-500.0,0.00055342,120]
[322085501,1712753470563,-500.0,0.00055342,120]
[322085502,1712753470622,-500.0,0.00055342,120]
[322085503,1712753470633,-500.0,0.00055342,120]
[322085504,1712753470643,-500.0,0.00055342,120]
[322085505,1712753470653,-500.0,0.00055342,120]
[322085506,1712753470663,-500.0,0.00055342,120]
[322085507,1712753470673,-500.0,0.00055342,120]
[322085508,1712753470683,-500.0,0.00055342,120]
[322085509,1712753470693,-500.0,0.00055342,120]
[322085510,1712753470704,-500.0,0.00055342,120]
[322085511,1712753470715,-500.0,0.00055342,120]
[322085512,1712753470725,-500.0,0.00055342,120]
[322085513,1712753470736,-500.0,0.00055342,120]
[322085514,1712753470746,-500.0,0.00055342,120]
[322085515,1712753470756,-174.33,0.00055342,120]
[322085516,1712753470766,-500.0,0.00055342,120]
[322085517,1712753470776,-308.98,0.00055342,120]
[322085518,1712753470786,-500.0,0.00055342,120]
[322085519,1712753470797,-500.0,0.00055342,120]
[322085520,1712753470807,-500.0,0.00055342,120]
[322085521,1712753470817,-500.0,0.00055342,120]
[322085522,1712753470827,-500.0,0.00055342,120]
[322085523,1712753470837,-500.0,0.00055342,120]
[322085524,1712753470851,-500.0,0.00055342,120]
[322085525,1712753470861,-500.0,0.00055342,120]
[322085526,1712753470871,-500.0,0.00055342,120]
[322085527,1712753470883,-500.0,0.00055342,120]
[322085528,1712753470893,-500.0,0.00055342,120]
[322085529,1712753470902,-500.0,0.00055342,120]
[322085530,1712753470913,-500.0,0.00055342,120]
[322085531,1712753470923,-500.0,0.00055342,120]
[322085532,1712753470933,-500.0,0.00055342,120]
[322085533,1712753470944,-500.0,0.00055342,120]
[322085534,1712753470955,-500.0,0.00055342,120]
[322085535,1712753470965,-500.0,0.00055342,120]
[322085536,1712753470975,-423.27,0.00055342,120]
[322085537,1712753470985,-500.0,0.00055342,120]
[322085538,1712753470995,-500.0,0.00055342,120]
[322085539,1712753471005,-500.0,0.00055342,120]
[322085540,1712753471015,-500.0,0.00055342,120]
[322085541,1712753471025,-500.0,0.00055342,120]
[322085542,1712753471035,-500.0,0.00055342,120]
[322085543,1712753471045,-500.0,0.00055342,7]
[322085544,1712753471054,-588.74,0.00055342,120]
[322085545,1712753471065,-170.56476292,0.00055342,120]
[322085546,1712753471074,-451.968197,0.00055342,120]
[322085547,1712753471084,-500.0,0.00055342,120]
[322085548,1712753471097,-545.05491973,0.00055342,120]
[322085549,1712753471107,-500.0,0.00055342,120]
[322085550,1712753471117,-500.0,0.00055342,120]
[322085551,1712753471127,-500.0,0.00055342,120]
[322085552,1712753471138,-524.49688434,0.00055342,120]
[322085553,1712753471148,-3974.91,0.00055342,120]
[322085554,1712753471158,-500.0,0.00055342,120]
[322085555,1712753471167,-428.40487634,0.00055342,120]
[322085556,1712753471177,-500.0,0.00055342,120]
[322085557,1712753471188,-500.0,0.00055342,120]
[322085558,1712753471197,-500.0,0.00055342,120]
[322085559,1712753471208,-500.0,0.00055342,120]
[322085560,1712753471217,-500.0,0.00055342,120]
[322085561,1712753471227,-500.0,0.00055342,120]
[322085562,1712753471237,-500.0,0.00055342,120]
[322085563,1712753471247,-552.27849457,0.00055342,120]
[322085564,1712753471257,-500.0,0.00055342,120]
[322085565,1712753471266,-500.0,0.00055342,120]
[322085566,1712753471277,-500.0,0.00055342,120]
[322085567,1712753471287,-500.0,0.00055342,120]
[322085568,1712753471297,-500.0,0.00055342,120]
[322085569,1712753471307,-500.0,0.00055342,120]
[322085570,1712753471317,-500.0,0.00055342,120]
[322085571,1712753471327,-500.0,0.00055342,21]
[322085572,1712753471341,-500.0,0.00055342,120]
[322085573,1712753471352,-500.0,0.00055342,120]
[322085574,1712753471362,-500.0,0.00055342,120]
[322085575,1712753471372,-500.0,0.00055342,120]
[322085576,1712753471383,-500.0,0.00055342,120]
[322085577,1712753471393,-235.73329239,0.00055342,120]
[322085578,1712753471403,-500.0,0.00055342,120]
[322085579,1712753471413,-500.0,0.00055342,120]
[322085580,1712753471423,-500.0,0.00055342,120]
[322085581,1712753471433,-500.0,0.00055342,120]
[322085582,1712753471443,-500.0,0.00055342,120]
[322085583,1712753471452,-500.0,0.00055342,120]
[322085584,1712753471462,-236.62464821,0.00055342,120]
[322085585,1712753471471,-500.0,0.00055342,120]
[322085586,1712753471481,-500.0,0.00055342,120]
[322085587,1712753471491,-500.0,0.00055342,120]
[322085588,1712753471501,-500.0,0.00055342,120]
[322085589,1712753471510,-500.0,0.00055342,120]
[322085590,1712753471520,-500.0,0.00055342,120]
[322085591,1712753471530,-600.0,0.00055342,120]
[322085592,1712753471539,-500.0,0.00055342,120]
[322085593,1712753471549,-500.0,0.00055342,120]
[322085594,1712753471559,-500.0,0.00055342,120]
[322085595,1712753471569,-500.0,0.00055342,120]
[322085596,1712753471579,-500.0,0.00055342,120]
[322085597,1712753471591,-500.0,0.00055342,120]
[322085598,1712753471601,-500.0,0.00055342,120]
[322085599,1712753471611,-500.0,0.00055342,120]
[322085600,1712753471622,-500.0,0.00055342,120]
[322085601,1712753471632,-500.0,0.00055342,120]
[322085602,1712753471641,-500.0,0.00055342,120]
[322085603,1712753471652,-500.0,0.00055342,120]
[322085604,1712753471662,-500.0,0.00055342,120]
[322085605,1712753471673,-500.0,0.00055342,120]
[322085606,1712753471683,-500.0,0.00055342,120]
[322085607,1712753471693,-500.0,0.00055342,120]
[322085608,1712753471704,-500.0,0.00055342,120]
[322085609,1712753471714,-500.0,0.00055342,120]
[322085610,1712753471724,-500.0,0.00055342,120]
[322085611,1712753471734,-522.58811272,0.00055342,120]
[322085612,1712753471744,-500.0,0.00055342,120]
[322085613,1712753471755,-318.27,0.00055342,120]
[322085614,1712753471765,-1220.88,0.00055342,120]
[322085615,1712753471775,-500.0,0.00055342,120]
[322085616,1712753471785,-500.0,0.00055342,120]
[322085617,1712753471795,-500.0,0.00055342,120]
[322085618,1712753471805,-500.0,0.00055342,120]
[322085619,1712753471815,-517.58,0.00055342,120]
[322085620,1712753471825,-4779.73,0.00055342,120]
[322085621,1712753471836,-500.0,0.00055342,120]
[322085622,1712753471849,-500.0,0.00055342,120]
[322085623,1712753471859,-500.0,0.00055342,120]
[322085624,1712753471872,-500.0,0.00055342,2]
[322085625,1712753471886,-565.92,0.00055342,120]
[322085626,1712753471896,-500.0,0.00055342,120]
[322085627,1712753471909,-500.0,0.00055342,120]
[322085628,1712753471918,-500.0,0.00055342,120]
[322085629,1712753471929,-536.44,0.00055342,120]
[322085630,1712753471939,-531.5,0.00055342,120]
[322085631,1712753471950,-500.0,0.00055342,2]
[322085632,1712753471959,-500.0,0.00055342,120]
[322085633,1712753471969,-500.0,0.00055342,120]
[322085634,1712753471979,-520.36,0.00055342,120]
[322085635,1712753471989,-500.0,0.00055342,120]
[322085636,1712753471999,-348.17210892,0.00055342,120]
[322085637,1712753472009,-500.0,0.00055342,120]
[322085638,1712753472018,-1638.3,0.00055342,120]
[322085639,1712753472028,-500.0,0.00055342,120]
[322085640,1712753472037,-500.0,0.00055342,120]
[322085641,1712753472046,-500.0,0.00055342,120]
[322085642,1712753472056,-500.0,0.00055342,120]
[322085643,1712753472065,-500.0,0.00055342,120]
[322085644,1712753472075,-736.22,0.00055342,120]
[322085645,1712753472085,-529.05,0.00055342,120]
[322085646,1712753472098,-393.02,0.00055342,120]
[322085647,1712753472108,-500.0,0.00055342,120]
[322085648,1712753472117,-500.0,0.00055342,120]
[322085649,1712753472128,-500.0,0.00055342,120]
[322085650,1712753472138,-500.0,0.00055342,120]
[322085651,1712753472148,-500.0,0.00055342,120]
[322085652,1712753472158,-500.0,0.00055342,120]
[322085653,1712753472170,-586.83,0.00055342,120]
[322085654,1712753472180,-500.0,0.00055342,120]
[322085655,1712753472190,-500.0,0.00055342,120]
[322085656,1712753472200,-500.0,0.00055342,120]
[322085657,1712753472209,-500.0,0.00055342,120]
[322085658,1712753472218,-500.0,0.00055342,120]
[322085659,1712753472229,-500.0,0.00055342,120]
[322085660,1712753472238,-1000.0,0.00055342,120]
[322085661,1712753472249,-500.0,0.00055342,120]
[322085662,1712753472259,-500.0,0.00055342,120]
[322085663,1712753472268,-500.0,0.00055342,120]
[322085664,1712753472278,-629.49,0.00055342,120]
[322085665,1712753472287,-500.0,0.00055342,120]
[322085666,1712753472297,-500.0,0.00055342,120]
[322085667,1712753472306,-500.0,0.00055342,120]
[322085668,1712753472316,-882.77,0.00055342,120]
[322085669,1712753472328,-500.0,0.00055342,120]
[322085670,1712753472340,-500.0,0.00055342,120]
[322085671,1712753472350,-500.0,0.00055342,120]
[322085672,1712753472359,-500.0,0.00055342,120]
[322085673,1712753472369,-500.0,0.00055342,120]
[322085674,1712753472379,-500.0,0.00055342,120]
[322085675,1712753472388,-500.0,0.00055342,120]
[322085676,1712753472398,-1383.05,0.00055342,120]
[322085677,1712753472407,-500.0,0.00055342,120]
[322085678,1712753472417,-2213.84,0.00055342,120]
[322085679,1712753472427,-875.22,0.00055342,120]
[322085680,1712753472437,-456.83,0.00055342,120]
[322085681,1712753472446,-500.0,0.00055342,120]
[322085682,1712753472456,-500.0,0.00055342,120]
[322085683,1712753472466,-773.72,0.00055342,120]
[322085684,1712753472476,-929.44,0.00055342,120]
[322085685,1712753472486,-500.0,0.00055342,120]
[322085686,1712753472496,-500.0,0.00055342,120]
[322085687,1712753472505,-513.20502156,0.00055342,120]
[322085688,1712753472515,-500.0,0.00055342,120]
[322085689,1712753472525,-500.0,0.00055342,120]
[322085690,1712753472535,-500.0,0.00055342,120]
[322085691,1712753472544,-500.0,0.00055342,120]
[322085692,1712753472554,-500.0,0.00055342,120]
[322085693,1712753472565,-500.0,0.00055342,120]
[322085694,1712753472574,-581.72241709,0.00055342,120]
[322085695,1712753472584,-500.0,0.00055342,120]
[322085696,1712753472598,-517.64,0.00055342,120]
[322085697,1712753472608,-500.0,0.00055342,120]
[322085698,1712753472619,-500.0,0.00055342,120]
[322085699,1712753472628,-500.0,0.00055342,120]
[322085700,1712753472638,-923.28,0.00055342,120]
[322085701,1712753472648,-500.0,0.00055342,120]
[322085702,1712753472657,-500.0,0.00055342,120]
[322085703,1712753472667,-815.56,0.00055342,120]
[322085704,1712753472678,-500.0,0.00055342,120]
[322085705,1712753472688,-500.0,0.00055342,120]
[322085706,1712753472697,-500.0,0.00055342,120]
[322085707,1712753472707,-500.0,0.00055342,120]
[322085708,1712753472721,-749.25,0.00055342,120]
[322085709,1712753472732,-500.0,0.00055342,120]
[322085710,1712753472742,-500.0,0.00055342,120]
[322085711,1712753472752,-500.0,0.00055342,120]
[322085712,1712753472763,-500.0,0.00055342,120]
[322085713,1712753472773,-500.0,0.00055342,120]
[322085714,1712753472784,-554.29,0.00055342,120]
[322085715,1712753472794,-500.0,0.00055342,120]
[322085716,1712753472805,-500.0,0.00055342,120]
[322085717,1712753472815,-505.35,0.00055342,120]
[322085718,1712753472825,-500.0,0.00055342,120]
[322085719,1712753472837,-500.0,0.00055342,120]
[322085720,1712753472852,-445.11658158,0.00055342,120]
[322085721,1712753472865,-500.0,0.00055342,120]
[322085722,1712753472879,-500.0,0.00055342,120]
[322085723,1712753472889,-552.72741659,0.00055342,120]
[322085724,1712753472900,-500.0,0.00055342,120]
[322085725,1712753472910,-1112.92,0.00055342,120]
[322085726,1712753472921,-500.0,0.00055342,120]
[322085727,1712753472932,-500.0,0.00055342,120]
[322085728,1712753472943,-500.0,0.00055342,120]
[322085729,1712753472955,-560.75,0.00055342,120]
[322085730,1712753472965,-500.0,0.00055342,120]
[322085731,1712753472976,-551.48,0.00055342,120]
[322085732,1712753472986,-500.0,0.00055342,120]
[322085733,1712753472996,-500.0,0.00055342,120]
[322085734,1712753473006,-500.0,0.00055342,120]
[322085735,1712753473017,-1468.27,0.00055342,120]
[322085736,1712753473028,-500.0,0.00055342,120]
[322085737,1712753473038,-500.0,0.00055342,120]
[322085738,1712753473048,-500.0,0.00055342,120]
[322085739,1712753473058,-594.65,0.00055342,120]
[322085740,1712753473067,-2023.1,0.00055342,120]
[322085741,1712753473077,-500.0,0.00055342,120]
[322085742,1712753473088,-500.0,0.00055342,120]
[322085743,1712753473101,-508.44,0.00055342,120]
[322085744,1712753473112,-748.0,0.00055342,120]
[322085745,1712753473121,-1207.24,0.00055342,120]
[322085746,1712753473132,-500.0,0.00055342,120]
[322085747,1712753473142,-205.64,0.00055342,120]
[322085748,1712753473152,-654.13,0.00055342,120]
[322085749,1712753473162,-500.0,0.00055342,120]
[322085750,1712753473172,-500.0,0.00055342,120]
[322085751,1712753473183,-500.0,0.00055342,120]
[322085752,1712753473193,-500.0,0.00055342,120]
[322085753,1712753473203,-500.0,0.00055342,120]
[322085754,1712753473214,-3437.2,0.00055342,120]
[322085755,1712753473224,-988.0,0.00055342,120]
[322085756,1712753473234,-500.0,0.00055342,120]
[322085757,1712753473244,-488.17427084,0.00055342,7]
[322085758,1712753473254,-219.2,0.00055342,120]
[322085759,1712753473264,-500.0,0.00055342,120]
[322085760,1712753473274,-500.0,0.00055342,120]
[322085761,1712753473284,-500.0,0.00055342,120]
[322085762,1712753473294,-506.63,0.00055342,120]
[322085763,1712753473304,-500.0,0.00055342,120]
[322085764,1712753473314,-500.0,0.00055342,120]
[322085765,1712753473324,-200.0,0.000554,120]
[322085766,1712753473334,-15000.0,0.0005544,21]
[322085767,1712753473347,-211.16,0.000555,120]
[322085768,1712753473358,-452.35387547,0.000555,120]
[322085769,1712753473368,-237934.70763346,0.000555,120]
[322085770,1712753473563,-150.0,0.00029891,2]
[322085771,1712753473574,-150.0,0.0002991,2]
[322085772,1712753473584,-613.725,0.000555,120]
[322085773,1712753473631,-150.0,0.00029727,2]
[322085774,1712753473642,-150.0,0.0002994,2]
[322085775,1712753473653,-150.0,0.00029943,2]
[322085776,1712753473663,-500.0,0.00055068,2]
[322085777,1712753473674,-372.96907766,0.000555,120]
[322085778,1712753473686,-6807.85367467,0.000555,120]
[322085779,1712753473698,-2887.60492404,0.000555,120]
[322085780,1712753473710,-1044.677349,0.000555,120]
[322085781,1712753473727,-450.373804,0.000555,120]
[322085782,1712753473739,-711.469513,0.000555,120]
[322085783,1712753473759,-150.0,0.00029763,2]
[322085784,1712753473769,-2489.9957625,0.000555,120]
[322085785,1712753473790,-150.0,0.00029744,2]
[322085786,1712753473800,-150.0,0.00029767,2]
[322085787,1712753473810,-17111.89215302,0.000555,120]
[322085788,1712753473822,-16519.45444698,0.000555,120]
[322085789,1712753473835,-958.32170608,0.000555,120]
[322085790,1712753473859,-150.0,0.00029879,2]
[322085791,1712753473872,-418.21586499,0.00055342,120]
[322085792,1712753473883,-1847.72998287,0.000555,120]
[322085793,1712753474271,-150.0,0.00029727,2]
[322085794,1712753474281,-150.0,0.00029732,2]
[322085795,1712753474292,-150.0,0.00029734,2]
[322085796,1712753474302,-150.0,0.00029737,2]
[322085797,1712753474310,-150.0,0.00029742,2]
[322085798,1712753474320,-150.0,0.00029744,2]
[322085799,1712753474329,-150.0,0.0002976,2]
[322085800,1712753474339,-150.0,0.00029773,2]
[322085801,1712753474356,-150.0,0.00029776,2]
[322085802,1712753474367,-150.0,0.00029779,2]
[322085803,1712753474377,-150.0,0.00029788,2]
[322085804,1712753474387,-150.0,0.00029797,2]
[322085805,1712753474399,-150.0,0.00029798,2]
[322085806,1712753474410,-150.0,0.00029805,2]
[322085807,1712753474421,-150.0,0.00029815,2]
[322085808,1712753474431,-150.0,0.0002982,2]
[322085809,1712753474441,-150.0,0.00029822,2]
[322085810,1712753474451,-150.0,0.00029824,2]
[322085811,1712753474462,-150.0,0.00029837,2]
[322085812,1712753474472,-150.0,0.00029838,2]
[322085813,1712753474482,-150.0,0.00029839,2]
[322085814,1712753474493,-150.0,0.0002984,2]
[322085815,1712753474503,-150.0,0.00029843,2]
[322085816,1712753474514,-150.0,0.00029844,2]
[322085817,1712753474524,-150.0,0.00029848,2]
[322085818,1712753474534,-150.0,0.00029856,2]
[322085819,1712753474545,-150.0,0.00029858,2]
[322085820,1712753474555,-150.0,0.00029886,2]
[322085821,1712753474571,-150.0,0.0002989,2]
[322085822,1712753474581,-150.0,0.00029891,2]
[322085823,1712753474606,-150.0,0.00029894,2]
[322085824,1712753474630,-150.0,0.00029894,2]
[322085825,1712753474644,-150.0,0.00029904,2]
[322085826,1712753474654,-150.0,0.00029915,2]
[322085827,1712753474667,-150.0,0.00029918,2]
[322085828,1712753474680,-150.0,0.00029921,2]
[322085829,1712753474690,-150.0,0.00029924,2]
[322085830,1712753474702,-150.0,0.00029928,2]
[322085831,1712753474736,-150.0,0.00029931,2]
[322085832,1712753474759,-150.0,0.00029934,2]
[322085833,1712753474780,-150.0,0.00029935,2]
[322085834,1712753474792,-150.0,0.00029936,2]
[322085835,1712753474807,-150.0,0.00029936,2]